[Event "Titled Tuesday Blitz July 6 2021"]
[White "Shahinyan, David"]
[Black "Orozbaev, Eldiar"]
[WhiteFideId "13304380"]
[BlackFideId "13802240"]
[WhiteElo "2372"]
[BlackElo "1911"]
[Result "0-1"]
[Round "03"]
[TimeControl "180+1"]
[Date "2021.07.06"]
[WhiteClock "0:00:02"]
[BlackClock "0:00:02"]

1. e4 {[%clk 0:03:00]}  e6 {[%clk 0:02:57]} 2. d4 {[%clk 0:02:57]}  d5 {[%clk 0:02:57]} 3. Nc3 {[%clk 0:02:58]}  Nf6 {[%clk 0:02:57]} 4. Bg5 {[%clk 0:02:53]}  Be7 {[%clk 0:02:57]} 5. exd5 {[%clk 0:02:52]}  exd5 {[%clk 0:02:56]} 6. Bd3 {[%clk 0:02:51]}  O-O {[%clk 0:02:55]} 7. h3 {[%clk 0:02:50]}  c6 {[%clk 0:02:54]} 8. Qf3 {[%clk 0:02:50]}  h6 {[%clk 0:02:54]} 9. Bh4 {[%clk 0:02:47]}  Ne4 {[%clk 0:02:45]} 10. Bxe7 {[%clk 0:02:27]}  Qxe7 {[%clk 0:02:46]} 11. Nge2 {[%clk 0:02:25]}  f5 {[%clk 0:02:44]} 12. O-O-O {[%clk 0:02:19]}  Qg5+ {[%clk 0:02:40]} 13. Kb1 {[%clk 0:01:59]}  Be6 {[%clk 0:02:26]} 14. h4 {[%clk 0:01:49]}  Qf6 {[%clk 0:02:22]} 15. h5 {[%clk 0:01:46]}  Nd7 {[%clk 0:02:19]} 16. Nf4 {[%clk 0:01:45]}  Bf7 {[%clk 0:02:17]} 17. Nce2 {[%clk 0:01:42]}  Rfe8 {[%clk 0:02:11]} 18. g3 {[%clk 0:01:33]}  a5 {[%clk 0:02:03]} 19. Qg2 {[%clk 0:01:33]}  a4 {[%clk 0:02:02]} 20. f3 {[%clk 0:01:34]}  Nd6 {[%clk 0:02:00]} 21. a3 {[%clk 0:01:33]}  b5 {[%clk 0:01:59]} 22. c3 {[%clk 0:01:34]}  Nc4 {[%clk 0:01:58]} 23. Bxc4 {[%clk 0:01:29]}  bxc4 {[%clk 0:01:59]} 24. g4 {[%clk 0:01:27]}  Rab8 {[%clk 0:01:58]} 25. Rd2 {[%clk 0:01:26]}  fxg4 {[%clk 0:01:44]} 26. Qxg4 {[%clk 0:01:23]}  Be6 {[%clk 0:01:44]} 27. Nxe6 {[%clk 0:01:20]}  Qxe6 {[%clk 0:01:44]} 28. Qg3 {[%clk 0:00:56]}  Qf5+ {[%clk 0:01:40]} 29. Ka2 {[%clk 0:00:56]}  Nf6 {[%clk 0:01:15]} 30. Nf4 {[%clk 0:00:54]}  Rb7 {[%clk 0:01:14]} 31. Rg2 {[%clk 0:00:49]}  Re3 {[%clk 0:01:02]} 32. Rhg1 {[%clk 0:00:41]}  Nxh5 {[%clk 0:00:20]} 33. Nxh5 {[%clk 0:00:31]}  Qxh5 {[%clk 0:00:21]} 34. Qd6 {[%clk 0:00:23]}  Rxf3 {[%clk 0:00:21]} 35. Qxc6 {[%clk 0:00:20]}  Re7 {[%clk 0:00:16]} 36. Qxa4 {[%clk 0:00:16]}  Qf5 {[%clk 0:00:13]} 37. Qa8+ {[%clk 0:00:15]}  Kh7 {[%clk 0:00:13]} 38. Qd8 {[%clk 0:00:15]}  Rf7 {[%clk 0:00:11]} 39. Qd6 {[%clk 0:00:12]}  Rf4 {[%clk 0:00:03]} 40. Rg6 {[%clk 0:00:10]}  Rf3 {[%clk 0:00:02]} 41. a4 {[%clk 0:00:09]}  Rf2 {[%clk 0:00:02]} 42. R6g2 {[%clk 0:00:05]}  Rxg2 {[%clk 0:00:02]} 43. Rxg2 {[%clk 0:00:05]}  h5 {[%clk 0:00:02]} 44. a5 {[%clk 0:00:05]}  h4 {[%clk 0:00:03]} 45. a6 {[%clk 0:00:06]}  h3 {[%clk 0:00:03]} 46. Rg1 {[%clk 0:00:05]}  Rf6 {[%clk 0:00:03]} 47. Qa3 {[%clk 0:00:02]}  Qc8 {[%clk 0:00:02]} 48. a7 {[%clk 0:00:02]}  Ra6 {[%clk 0:00:02]} 0-1


[Site "https://www.chess.com"]

[Event "Titled Tuesday Blitz July 6 2021"]
[White "Sonis, Francesco"]
[Black "Shevtchenko, Olesya"]
[WhiteFideId "895733"]
[BlackFideId "24131890"]
[WhiteElo "2373"]
[BlackElo "2003"]
[Result "1/2-1/2"]
[Round "03"]
[TimeControl "180+1"]
[Date "2021.07.06"]
[WhiteClock "0:00:33"]
[BlackClock "0:00:06"]

1. d4 {[%clk 0:03:00]}  Nf6 {[%clk 0:02:59]} 2. c3 {[%clk 0:03:01]}  c5 {[%clk 0:02:57]} 3. Nf3 {[%clk 0:03:01]}  d5 {[%clk 0:02:57]} 4. Bf4 {[%clk 0:02:59]}  Nc6 {[%clk 0:02:57]} 5. e3 {[%clk 0:02:56]}  e6 {[%clk 0:02:54]} 6. Nbd2 {[%clk 0:02:55]}  Bd6 {[%clk 0:02:53]} 7. Bg3 {[%clk 0:02:54]}  Bxg3 {[%clk 0:02:50]} 8. hxg3 {[%clk 0:02:54]}  O-O {[%clk 0:02:51]} 9. Bd3 {[%clk 0:02:54]}  h6 {[%clk 0:02:47]} 10. Qe2 {[%clk 0:02:49]}  c4 {[%clk 0:02:46]} 11. Bc2 {[%clk 0:02:47]}  Re8 {[%clk 0:02:37]} 12. Ne5 {[%clk 0:02:46]}  Nxe5 {[%clk 0:02:35]} 13. dxe5 {[%clk 0:02:47]}  Nd7 {[%clk 0:02:36]} 14. f4 {[%clk 0:02:46]}  Qb6 {[%clk 0:02:24]} 15. Nf3 {[%clk 0:02:44]}  Kf8 {[%clk 0:02:20]} 16. Rb1 {[%clk 0:02:42]}  Nc5 {[%clk 0:02:13]} 17. Nd4 {[%clk 0:02:41]}  Bd7 {[%clk 0:02:09]} 18. g4 {[%clk 0:02:41]}  Ke7 {[%clk 0:02:06]} 19. b4 {[%clk 0:02:38]}  cxb3 {[%clk 0:02:03]} 20. axb3 {[%clk 0:02:39]}  Rac8 {[%clk 0:02:01]} 21. O-O {[%clk 0:02:35]}  Qa6 {[%clk 0:01:57]} 22. c4 {[%clk 0:02:33]}  dxc4 {[%clk 0:01:49]} 23. bxc4 {[%clk 0:02:34]}  Na4 {[%clk 0:01:45]} 24. Bxa4 {[%clk 0:02:33]}  Bxa4 {[%clk 0:01:46]} 25. Rb4 {[%clk 0:02:32]}  Bc6 {[%clk 0:01:43]} 26. Rfb1 {[%clk 0:02:27]}  Qa5 {[%clk 0:01:41]} 27. Qb2 {[%clk 0:02:26]}  Rc7 {[%clk 0:01:35]} 28. Ra1 {[%clk 0:02:15]}  Qc5 {[%clk 0:01:33]} 29. Qa3 {[%clk 0:02:16]}  Ra8 {[%clk 0:01:22]} 30. Nxc6+ {[%clk 0:02:05]}  bxc6 {[%clk 0:01:21]} 31. Qa5 {[%clk 0:01:48]}  Qxe3+ {[%clk 0:01:13]} 32. Kh1 {[%clk 0:01:42]}  Rd7 {[%clk 0:01:11]} 33. Rbb1 {[%clk 0:01:28]}  Rad8 {[%clk 0:00:59]} 34. Rf1 {[%clk 0:01:26]}  h5 {[%clk 0:00:51]} 35. Ra3 {[%clk 0:01:14]}  Qe2 {[%clk 0:00:38]} 36. Qc5+ {[%clk 0:01:10]}  Ke8 {[%clk 0:00:37]} 37. Raa1 {[%clk 0:01:10]}  hxg4 {[%clk 0:00:29]} 38. f5 {[%clk 0:01:10]}  g3 {[%clk 0:00:26]} 39. Kg1 {[%clk 0:00:54]}  Qh5 {[%clk 0:00:18]} 40. Rfc1 {[%clk 0:00:53]}  Qh2+ {[%clk 0:00:17]} 41. Kf1 {[%clk 0:00:54]}  Qh1+ {[%clk 0:00:14]} 42. Qg1 {[%clk 0:00:53]}  Qxg1+ {[%clk 0:00:14]} 43. Kxg1 {[%clk 0:00:53]}  exf5 {[%clk 0:00:15]} 44. Kf1 {[%clk 0:00:52]}  Ke7 {[%clk 0:00:15]} 45. Ra3 {[%clk 0:00:52]}  Ke6 {[%clk 0:00:15]} 46. Rxg3 {[%clk 0:00:52]}  g6 {[%clk 0:00:16]} 47. Ra3 {[%clk 0:00:52]}  Rd1+ {[%clk 0:00:15]} 48. Rxd1 {[%clk 0:00:52]}  Rxd1+ {[%clk 0:00:16]} 49. Ke2 {[%clk 0:00:52]}  Rd7 {[%clk 0:00:16]} 50. Ra5 {[%clk 0:00:52]}  f4 {[%clk 0:00:15]} 51. Kf3 {[%clk 0:00:53]}  Kf5 {[%clk 0:00:15]} 52. e6+ {[%clk 0:00:52]}  Kxe6 {[%clk 0:00:15]} 53. Kxf4 {[%clk 0:00:53]}  Rd4+ {[%clk 0:00:15]} 54. Kg5 {[%clk 0:00:53]}  Rxc4 {[%clk 0:00:15]} 55. Rxa7 {[%clk 0:00:53]}  Rc5+ {[%clk 0:00:16]} 56. Kf4 {[%clk 0:00:53]}  Kf6 {[%clk 0:00:15]} 57. Rc7 {[%clk 0:00:52]}  Rc4+ {[%clk 0:00:16]} 58. Kf3 {[%clk 0:00:53]}  Kg5 {[%clk 0:00:16]} 59. Rxf7 {[%clk 0:00:52]}  Rc3+ {[%clk 0:00:17]} 60. Kf2 {[%clk 0:00:52]}  c5 {[%clk 0:00:17]} 61. Rc7 {[%clk 0:00:52]}  Rc2+ {[%clk 0:00:17]} 62. Kf3 {[%clk 0:00:52]}  Rc3+ {[%clk 0:00:17]} 63. Kf2 {[%clk 0:00:53]}  Kg4 {[%clk 0:00:17]} 64. Rd7 {[%clk 0:00:52]}  g5 {[%clk 0:00:17]} 65. Rd5 {[%clk 0:00:52]}  Rc2+ {[%clk 0:00:18]} 66. Kg1 {[%clk 0:00:51]}  Kf4 {[%clk 0:00:16]} 67. Kh2 {[%clk 0:00:51]}  g4 {[%clk 0:00:16]} 68. Rh5 {[%clk 0:00:50]}  c4 {[%clk 0:00:15]} 69. Rh8 {[%clk 0:00:50]}  c3 {[%clk 0:00:14]} 70. Rc8 {[%clk 0:00:50]}  Rc1 {[%clk 0:00:14]} 71. Rc4+ {[%clk 0:00:50]}  Kf5 {[%clk 0:00:12]} 72. Kg3 {[%clk 0:00:50]}  c2 {[%clk 0:00:09]} 73. Rc5+ {[%clk 0:00:46]}  Ke4 {[%clk 0:00:09]} 74. Kxg4 {[%clk 0:00:47]}  Kd3 {[%clk 0:00:09]} 75. Kg5 {[%clk 0:00:38]}  Rg1 {[%clk 0:00:07]} 76. Rxc2 {[%clk 0:00:37]}  Kxc2 {[%clk 0:00:06]} 77. g4 {[%clk 0:00:38]}  Kd3 {[%clk 0:00:07]} 78. Kf5 {[%clk 0:00:39]}  Kd4 {[%clk 0:00:07]} 79. g5 {[%clk 0:00:40]}  Kd5 {[%clk 0:00:06]} 80. Kf6 {[%clk 0:00:40]}  Rf1+ {[%clk 0:00:06]} 81. Ke7 {[%clk 0:00:39]}  Rg1 {[%clk 0:00:05]} 82. Kf6 {[%clk 0:00:39]}  Kd6 {[%clk 0:00:05]} 83. g6 {[%clk 0:00:37]}  Rf1+ {[%clk 0:00:05]} 84. Kg7 {[%clk 0:00:37]}  Ke7 {[%clk 0:00:05]} 85. Kh7 {[%clk 0:00:36]}  Rg1 {[%clk 0:00:06]} 86. Kg7 {[%clk 0:00:33]}  Ke6 {[%clk 0:00:05]} 87. Kh8 {[%clk 0:00:32]}  Kf6 {[%clk 0:00:06]} 88. g7 {[%clk 0:00:33]}  Rxg7 {[%clk 0:00:06]} 1/2-1/2


[Site "https://www.chess.com"]

[Event "Titled Tuesday Blitz July 6 2021"]
[White "Sztokbant, Bernardo Vainzoff"]
[Black "Bilych, Olexiy"]
[WhiteFideId "2115956"]
[BlackFideId "14156504"]
[WhiteElo "2264"]
[BlackElo "2246"]
[Result "0-1"]
[Round "03"]
[TimeControl "180+1"]
[Date "2021.07.06"]
[WhiteClock "0:00:03"]
[BlackClock "0:00:17"]

1. e4 {[%clk 0:02:35]}  Nf6 {[%clk 0:02:58]} 2. Nc3 {[%clk 0:02:31]}  e5 {[%clk 0:02:57]} 3. Nf3 {[%clk 0:02:31]}  Nc6 {[%clk 0:02:57]} 4. Bc4 {[%clk 0:02:29]}  Bc5 {[%clk 0:02:54]} 5. O-O {[%clk 0:02:28]}  d6 {[%clk 0:02:55]} 6. h3 {[%clk 0:02:27]}  h6 {[%clk 0:02:54]} 7. d3 {[%clk 0:02:26]}  a6 {[%clk 0:02:54]} 8. a3 {[%clk 0:02:25]}  Ba7 {[%clk 0:02:50]} 9. Re1 {[%clk 0:02:19]}  g5 {[%clk 0:02:30]} 10. Be3 {[%clk 0:02:18]}  Bxe3 {[%clk 0:02:28]} 11. Rxe3 {[%clk 0:02:18]}  g4 {[%clk 0:02:27]} 12. Nh4 {[%clk 0:02:17]}  gxh3 {[%clk 0:02:20]} 13. gxh3 {[%clk 0:02:18]}  Nd4 {[%clk 0:02:14]} 14. Ne2 {[%clk 0:01:56]}  Ng4 {[%clk 0:02:07]} 15. hxg4 {[%clk 0:01:51]}  Qxh4 {[%clk 0:02:06]} 16. Nxd4 {[%clk 0:01:51]}  exd4 {[%clk 0:01:42]} 17. Rg3 {[%clk 0:01:51]}  Be6 {[%clk 0:01:37]} 18. Qf3 {[%clk 0:01:43]}  O-O-O {[%clk 0:01:37]} 19. Kg2 {[%clk 0:01:37]}  Rdg8 {[%clk 0:01:10]} 20. Rh1 {[%clk 0:01:27]}  Qg5 {[%clk 0:01:09]} 21. Rh5 {[%clk 0:01:00]}  Bxg4 {[%clk 0:01:08]} 22. Qxf7 {[%clk 0:00:40]}  Qd8 {[%clk 0:00:32]} 23. Be6+ {[%clk 0:00:27]}  Bxe6 {[%clk 0:00:32]} 24. Qxe6+ {[%clk 0:00:28]}  Kb8 {[%clk 0:00:32]} 25. Rxh6 {[%clk 0:00:23]}  Rxg3+ {[%clk 0:00:29]} 26. fxg3 {[%clk 0:00:22]}  Rf8 {[%clk 0:00:29]} 27. Rh5 {[%clk 0:00:16]}  Rg8 {[%clk 0:00:25]} 28. Rh7 {[%clk 0:00:11]}  Qg5 {[%clk 0:00:24]} 29. g4 {[%clk 0:00:06]}  Rf8 {[%clk 0:00:20]} 30. Rf7 {[%clk 0:00:05]}  Qd2+ {[%clk 0:00:17]} 31. Kg3 {[%clk 0:00:05]}  Rh8 {[%clk 0:00:17]} 32. Qf6 {[%clk 0:00:02]}  Qh2+ {[%clk 0:00:17]} 33. Kf3 {[%clk 0:00:03]}  Rh3# {[%clk 0:00:17]} 0-1


[Site "https://www.chess.com"]

[Event "Titled Tuesday Blitz July 6 2021"]
[White "Tomiello, Lucas Costamilan"]
[Black "Weetik, Vjacheslav"]
[WhiteFideId "22701940"]
[BlackFideId "4153472"]
[WhiteElo "1945"]
[BlackElo "2469"]
[Result "1-0"]
[Round "03"]
[TimeControl "180+1"]
[Date "2021.07.06"]
[WhiteClock "0:00:24"]
[BlackClock "0:00:02"]

1. e4 {[%clk 0:03:00]}  c6 {[%clk 0:02:59]} 2. d4 {[%clk 0:02:59]}  d5 {[%clk 0:02:59]} 3. Nd2 {[%clk 0:02:59]}  dxe4 {[%clk 0:02:59]} 4. Nxe4 {[%clk 0:03:00]}  Nf6 {[%clk 0:03:00]} 5. Nxf6+ {[%clk 0:02:59]}  exf6 {[%clk 0:03:01]} 6. c3 {[%clk 0:03:00]}  Bd6 {[%clk 0:03:01]} 7. Bd3 {[%clk 0:03:00]}  O-O {[%clk 0:03:02]} 8. Ne2 {[%clk 0:03:01]}  Re8 {[%clk 0:03:01]} 9. Qc2 {[%clk 0:02:59]}  h5 {[%clk 0:03:00]} 10. Be3 {[%clk 0:02:59]}  Nd7 {[%clk 0:03:01]} 11. O-O-O {[%clk 0:02:59]}  Nf8 {[%clk 0:03:01]} 12. c4 {[%clk 0:03:00]}  Be6 {[%clk 0:02:58]} 13. Kb1 {[%clk 0:02:58]}  b5 {[%clk 0:02:51]} 14. d5 {[%clk 0:02:47]}  cxd5 {[%clk 0:02:45]} 15. c5 {[%clk 0:02:47]}  Be5 {[%clk 0:02:34]} 16. Nd4 {[%clk 0:02:16]}  a6 {[%clk 0:02:24]} 17. h3 {[%clk 0:02:07]}  h4 {[%clk 0:02:17]} 18. f4 {[%clk 0:01:56]}  Bxd4 {[%clk 0:01:57]} 19. Bxd4 {[%clk 0:01:57]}  Qc7 {[%clk 0:01:52]} 20. Qf2 {[%clk 0:01:48]}  f5 {[%clk 0:01:30]} 21. g4 {[%clk 0:01:40]}  hxg3 {[%clk 0:01:05]} 22. Qxg3 {[%clk 0:01:39]}  Ng6 {[%clk 0:01:05]} 23. Rdf1 {[%clk 0:01:31]}  Bd7 {[%clk 0:00:33]} 24. h4 {[%clk 0:01:29]}  Re4 {[%clk 0:00:33]} 25. Bxe4 {[%clk 0:01:26]}  fxe4 {[%clk 0:00:33]} 26. h5 {[%clk 0:01:24]}  Bf5 {[%clk 0:00:33]} 27. hxg6 {[%clk 0:01:22]}  fxg6 {[%clk 0:00:33]} 28. Qh4 {[%clk 0:01:16]}  Kf7 {[%clk 0:00:33]} 29. Qh7 {[%clk 0:00:58]}  Rg8 {[%clk 0:00:32]} 30. Ka1 {[%clk 0:00:51]}  Qa5 {[%clk 0:00:30]} 31. Rh5 {[%clk 0:00:41]}  Qd2 {[%clk 0:00:08]} 32. Rxf5+ {[%clk 0:00:40]}  gxf5 {[%clk 0:00:07]} 33. Qxf5+ {[%clk 0:00:41]}  Ke7 {[%clk 0:00:07]} 34. Qe5+ {[%clk 0:00:40]}  Kf8 {[%clk 0:00:04]} 35. c6 {[%clk 0:00:33]}  Qc2 {[%clk 0:00:02]} 36. Qd6+ {[%clk 0:00:26]}  Kf7 {[%clk 0:00:02]} 37. Qd7+ {[%clk 0:00:25]}  Kg6 {[%clk 0:00:03]} 38. Rg1+ {[%clk 0:00:25]}  Kh7 {[%clk 0:00:02]} 39. Qh3# {[%clk 0:00:24]} 1-0


[Site "https://www.chess.com"]

[Event "Titled Tuesday Blitz July 6 2021"]
[White "Vakhlamov, Igor L."]
[Black "Abdusattorov, Nodirbek"]
[WhiteFideId "24126748"]
[BlackFideId "14204118"]
[WhiteElo "2416"]
[BlackElo "2662"]
[Result "0-1"]
[Round "03"]
[TimeControl "180+1"]
[Date "2021.07.06"]
[WhiteClock "0:00:30"]
[BlackClock "0:00:17"]

1. e4 {[%clk 0:03:00]}  c6 {[%clk 0:02:59]} 2. Nc3 {[%clk 0:03:00]}  d5 {[%clk 0:03:00]} 3. Nf3 {[%clk 0:03:00]}  dxe4 {[%clk 0:03:00]} 4. Nxe4 {[%clk 0:03:01]}  Nf6 {[%clk 0:03:00]} 5. Qe2 {[%clk 0:03:01]}  Nxe4 {[%clk 0:03:01]} 6. Qxe4 {[%clk 0:03:02]}  Nd7 {[%clk 0:03:01]} 7. Bc4 {[%clk 0:03:02]}  Nf6 {[%clk 0:03:01]} 8. Ne5 {[%clk 0:03:02]}  e6 {[%clk 0:03:00]} 9. Qe2 {[%clk 0:03:03]}  b5 {[%clk 0:03:00]} 10. Bb3 {[%clk 0:02:59]}  Bd6 {[%clk 0:02:54]} 11. d4 {[%clk 0:02:58]}  Qc7 {[%clk 0:02:53]} 12. O-O {[%clk 0:02:58]}  O-O {[%clk 0:02:51]} 13. c3 {[%clk 0:02:57]}  c5 {[%clk 0:02:50]} 14. Re1 {[%clk 0:02:53]}  c4 {[%clk 0:02:49]} 15. Bc2 {[%clk 0:02:53]}  Bb7 {[%clk 0:02:49]} 16. Qe3 {[%clk 0:02:44]}  Nd5 {[%clk 0:02:48]} 17. Qh3 {[%clk 0:02:44]}  f5 {[%clk 0:02:49]} 18. Bd2 {[%clk 0:02:38]}  Rae8 {[%clk 0:02:46]} 19. Re2 {[%clk 0:02:38]}  a5 {[%clk 0:02:42]} 20. Rae1 {[%clk 0:02:37]}  b4 {[%clk 0:02:36]} 21. Nf3 {[%clk 0:02:01]}  bxc3 {[%clk 0:02:32]} 22. bxc3 {[%clk 0:02:01]}  Bf4 {[%clk 0:01:58]} 23. Ng5 {[%clk 0:01:27]}  Bxg5 {[%clk 0:01:53]} 24. Bxg5 {[%clk 0:01:28]}  h6 {[%clk 0:01:49]} 25. Bd2 {[%clk 0:01:26]}  Rf6 {[%clk 0:01:49]} 26. Re5 {[%clk 0:01:07]}  Qf7 {[%clk 0:01:45]} 27. Ba4 {[%clk 0:00:41]}  Rf8 {[%clk 0:01:38]} 28. f3 {[%clk 0:00:41]}  Rg6 {[%clk 0:01:37]} 29. Bb5 {[%clk 0:00:40]}  Nb6 {[%clk 0:01:24]} 30. Qh4 {[%clk 0:00:39]}  Bxf3 {[%clk 0:01:23]} 31. g3 {[%clk 0:00:37]}  Ba8 {[%clk 0:01:19]} 32. Bf4 {[%clk 0:00:31]}  Qb7 {[%clk 0:01:18]} 33. Qh3 {[%clk 0:00:26]}  Qh1+ {[%clk 0:01:16]} 34. Kf2 {[%clk 0:00:25]}  Qf3+ {[%clk 0:01:17]} 35. Kg1 {[%clk 0:00:26]}  Qxc3 {[%clk 0:01:17]} 36. Rxe6 {[%clk 0:00:21]}  Rxe6 {[%clk 0:01:16]} 37. Rxe6 {[%clk 0:00:22]}  Qa1+ {[%clk 0:01:12]} 38. Qf1 {[%clk 0:00:22]}  Qxd4+ {[%clk 0:01:12]} 39. Qf2 {[%clk 0:00:22]}  Qd5 {[%clk 0:01:10]} 40. Qe2 {[%clk 0:00:14]}  Qxb5 {[%clk 0:01:07]} 41. Be5 {[%clk 0:00:12]}  Qd5 {[%clk 0:01:04]} 42. Rxb6 {[%clk 0:00:11]}  Qc5+ {[%clk 0:01:04]} 43. Qf2 {[%clk 0:00:10]}  Qxe5 {[%clk 0:01:05]} 44. Qc5 {[%clk 0:00:10]}  Qxc5+ {[%clk 0:01:05]} 45. Kf1 {[%clk 0:00:10]}  Qxb6 {[%clk 0:01:05]} 46. h4 {[%clk 0:00:07]}  Qb2 {[%clk 0:01:05]} 47. a4 {[%clk 0:00:08]}  Qb3 {[%clk 0:01:04]} 48. h5 {[%clk 0:00:09]}  Qxg3 {[%clk 0:01:03]} 49. Ke2 {[%clk 0:00:09]}  Qf3+ {[%clk 0:01:03]} 50. Kd2 {[%clk 0:00:10]}  Qxh5 {[%clk 0:01:04]} 51. Kc3 {[%clk 0:00:10]}  Rc8 {[%clk 0:01:03]} 52. Kd4 {[%clk 0:00:11]}  Qd1+ {[%clk 0:01:03]} 53. Ke5 {[%clk 0:00:11]}  Qd5+ {[%clk 0:01:02]} 54. Kf4 {[%clk 0:00:12]}  g5+ {[%clk 0:01:03]} 55. Kg3 {[%clk 0:00:12]}  Qd3+ {[%clk 0:01:03]} 56. Kf2 {[%clk 0:00:12]}  c3 {[%clk 0:01:03]} 57. Ke1 {[%clk 0:00:10]}  Bc6 {[%clk 0:01:03]} 58. Kf2 {[%clk 0:00:11]}  Bxa4 {[%clk 0:01:04]} 59. Kg1 {[%clk 0:00:12]}  Bb5 {[%clk 0:01:04]} 60. Kh2 {[%clk 0:00:13]}  a4 {[%clk 0:01:04]} 61. Kg1 {[%clk 0:00:13]}  a3 {[%clk 0:01:05]} 62. Kf2 {[%clk 0:00:14]}  a2 {[%clk 0:01:05]} 63. Kg2 {[%clk 0:00:14]}  h5 {[%clk 0:01:06]} 64. Kf2 {[%clk 0:00:15]}  h4 {[%clk 0:01:07]} 65. Kg2 {[%clk 0:00:16]}  g4 {[%clk 0:01:07]} 66. Kh2 {[%clk 0:00:17]}  f4 {[%clk 0:01:07]} 67. Kg2 {[%clk 0:00:18]}  c2 {[%clk 0:01:07]} 68. Kh2 {[%clk 0:00:19]}  c1=Q {[%clk 0:01:06]} 69. Kg2 {[%clk 0:00:20]}  a1=Q {[%clk 0:01:06]} 70. Kh2 {[%clk 0:00:21]}  Rf8 {[%clk 0:01:01]} 71. Kg2 {[%clk 0:00:22]}  Qa6 {[%clk 0:00:51]} 72. Kf2 {[%clk 0:00:23]}  Be8 {[%clk 0:00:49]} 73. Kg2 {[%clk 0:00:23]}  Bh5 {[%clk 0:00:49]} 74. Kf2 {[%clk 0:00:24]}  Qh6 {[%clk 0:00:47]} 75. Kg2 {[%clk 0:00:25]}  Qcc6+ {[%clk 0:00:46]} 76. Kf2 {[%clk 0:00:26]}  Qg3+ {[%clk 0:00:46]} 77. Ke2 {[%clk 0:00:25]}  Qcg6 {[%clk 0:00:46]} 78. Kd2 {[%clk 0:00:26]}  h3 {[%clk 0:00:45]} 79. Ke2 {[%clk 0:00:26]}  h2 {[%clk 0:00:46]} 80. Kf1 {[%clk 0:00:27]}  h1=Q+ {[%clk 0:00:46]} 81. Ke2 {[%clk 0:00:27]}  Qhh4 {[%clk 0:00:42]} 82. Kd2 {[%clk 0:00:28]}  f3+ {[%clk 0:00:42]} 83. Kd1 {[%clk 0:00:27]}  Qgg7 {[%clk 0:00:38]} 84. Kc2 {[%clk 0:00:26]}  f2 {[%clk 0:00:37]} 85. Kd1 {[%clk 0:00:23]}  Qhh8 {[%clk 0:00:37]} 86. Kd2 {[%clk 0:00:24]}  Qf3 {[%clk 0:00:36]} 87. Kc2 {[%clk 0:00:24]}  g3 {[%clk 0:00:35]} 88. Kd2 {[%clk 0:00:25]}  g2 {[%clk 0:00:36]} 89. Kc2 {[%clk 0:00:26]}  f1=Q {[%clk 0:00:35]} 90. Kd2 {[%clk 0:00:27]}  g1=Q {[%clk 0:00:34]} 91. Kc2 {[%clk 0:00:28]}  Re8 {[%clk 0:00:22]} 92. Kd2 {[%clk 0:00:29]}  Qhf4+ {[%clk 0:00:19]} 93. Kc2 {[%clk 0:00:30]}  Qg7g2# {[%clk 0:00:17]} 0-1


[Site "https://www.chess.com"]

[Event "Titled Tuesday Blitz July 6 2021"]
[White "Vogel, Roven"]
[Black "Leve, Nitai"]
[WhiteFideId "12908088"]
[BlackFideId "2006898"]
[WhiteElo "2516"]
[BlackElo "2144"]
[Result "1-0"]
[Round "03"]
[TimeControl "180+1"]
[Date "2021.07.06"]
[WhiteClock "0:00:31"]
[BlackClock "0:00:03"]

1. e4 {[%clk 0:03:00]}  e6 {[%clk 0:02:58]} 2. d4 {[%clk 0:02:57]}  d5 {[%clk 0:02:58]} 3. Nd2 {[%clk 0:02:58]}  Nf6 {[%clk 0:02:58]} 4. e5 {[%clk 0:02:51]}  Nfd7 {[%clk 0:02:59]} 5. Ndf3 {[%clk 0:02:43]}  c5 {[%clk 0:02:57]} 6. c3 {[%clk 0:02:43]}  Nc6 {[%clk 0:02:58]} 7. Bd3 {[%clk 0:02:43]}  g6 {[%clk 0:02:54]} 8. Ne2 {[%clk 0:02:41]}  cxd4 {[%clk 0:02:52]} 9. cxd4 {[%clk 0:02:41]}  Bg7 {[%clk 0:02:53]} 10. h4 {[%clk 0:02:40]}  f6 {[%clk 0:02:16]} 11. exf6 {[%clk 0:02:29]}  Qxf6 {[%clk 0:02:05]} 12. h5 {[%clk 0:02:29]}  e5 {[%clk 0:02:02]} 13. Bg5 {[%clk 0:02:28]}  Qf7 {[%clk 0:01:57]} 14. Nc3 {[%clk 0:02:03]}  e4 {[%clk 0:01:53]} 15. Nb5 {[%clk 0:02:02]}  O-O {[%clk 0:01:41]} 16. hxg6 {[%clk 0:01:50]}  Qxg6 {[%clk 0:01:38]} 17. Qb3 {[%clk 0:01:49]}  exd3 {[%clk 0:01:23]} 18. Nc7 {[%clk 0:01:49]}  d2+ {[%clk 0:00:59]} 19. Bxd2 {[%clk 0:01:47]}  Rb8 {[%clk 0:00:51]} 20. Nxd5 {[%clk 0:01:45]}  Kh8 {[%clk 0:00:51]} 21. O-O-O {[%clk 0:01:33]}  Nf6 {[%clk 0:00:45]} 22. Nf4 {[%clk 0:01:31]}  Qf7 {[%clk 0:00:32]} 23. d5 {[%clk 0:01:25]}  Bf5 {[%clk 0:00:06]} 24. Bc3 {[%clk 0:01:13]}  Ne7 {[%clk 0:00:03]} 25. Ng5 {[%clk 0:01:06]}  Qg8 {[%clk 0:00:03]} 26. Nge6 {[%clk 0:00:58]}  Ng6 {[%clk 0:00:02]} 27. Nxg6+ {[%clk 0:00:43]}  Bxg6 {[%clk 0:00:03]} 28. Nxf8 {[%clk 0:00:39]}  Qxf8 {[%clk 0:00:04]} 29. Rhe1 {[%clk 0:00:36]}  Bh6+ {[%clk 0:00:04]} 30. Re3 {[%clk 0:00:35]}  Bxe3+ {[%clk 0:00:04]} 31. fxe3 {[%clk 0:00:36]}  Rc8 {[%clk 0:00:03]} 32. d6 {[%clk 0:00:32]}  Be4 {[%clk 0:00:03]} 33. Qe6 {[%clk 0:00:31]} 1-0


[Site "https://www.chess.com"]

[Event "Titled Tuesday Blitz July 6 2021"]
[White "Vovk, Orest"]
[Black "Hryshchenko, Kamila"]
[WhiteFideId "14113490"]
[BlackFideId "14147491"]
[WhiteElo "2203"]
[BlackElo "1966"]
[Result "0-1"]
[Round "03"]
[TimeControl "180+1"]
[Date "2021.07.06"]
[WhiteClock "0:00:22"]
[BlackClock "0:02:05"]

1. h3 {[%clk 0:03:00]}  e5 {[%clk 0:02:59]} 2. g4 {[%clk 0:02:59]}  Nc6 {[%clk 0:03:00]} 3. Bg2 {[%clk 0:02:59]}  h5 {[%clk 0:03:01]} 4. gxh5 {[%clk 0:02:29]}  Bc5 {[%clk 0:03:00]} 5. d3 {[%clk 0:02:26]}  Qh4 {[%clk 0:02:57]} 6. e3 {[%clk 0:02:23]}  Nf6 {[%clk 0:02:55]} 7. Nc3 {[%clk 0:02:14]}  d6 {[%clk 0:02:54]} 8. Bd2 {[%clk 0:02:04]}  Qg5 {[%clk 0:02:48]} 9. Qf3 {[%clk 0:01:54]}  Be6 {[%clk 0:02:31]} 10. O-O-O {[%clk 0:01:46]}  O-O-O {[%clk 0:02:28]} 11. Nge2 {[%clk 0:01:40]}  Qxh5 {[%clk 0:02:28]} 12. Qxh5 {[%clk 0:01:29]}  Rxh5 {[%clk 0:02:29]} 13. Ng3 {[%clk 0:01:27]}  Rh4 {[%clk 0:02:26]} 14. e4 {[%clk 0:01:10]}  Bxf2 {[%clk 0:02:23]} 15. Nf5 {[%clk 0:01:06]}  Rh7 {[%clk 0:02:21]} 16. Bg5 {[%clk 0:01:03]}  Bxf5 {[%clk 0:02:12]} 17. exf5 {[%clk 0:01:04]}  Nd4 {[%clk 0:02:11]} 18. Ne4 {[%clk 0:00:52]}  Bh4 {[%clk 0:02:08]} 19. Nxf6 {[%clk 0:00:22]}  Bxg5+ {[%clk 0:02:05]} 0-1


[Site "https://www.chess.com"]